Cogmind - Beta 15 @@@ ROGUE MODE // 2025.08.29 @ 16:46:47 Player: Tuja Result: Destroyed by P-80 Master with Gamma Rifle Performance ------------- Evolutions (9) 4500 Regions Visited (21) 4200 Robots Destroyed (228) 1140 Value Destroyed (8878) 8878 Prototype IDs (38) 760 Alien Tech Used (0) 0 Bonus (12730) 12730 TOTAL SCORE: 32208 Bonus ------- Triggered Max Security 1000 High Alert Combat Kills 430 Follower Combat Kills 2091 Aligned with FarCom 300 Met Warlord at Base 500 MAIN.C Attacked Warlord 500 Warlord Defense Kills 1208 Built Enhanced Grunts 300 Met R17 at Cetus 500 Met R17 at Research 2000 Met Warlord at Research 2000 Invited to Help at Command 2000 Friendly Fire -99 Cogmind --------- Core Integrity 0/1600 Matter 203/300 Energy 98/100 System Corruption 4% Temperature Cool (0) Movement Core (50) Location -1/Access Parts ------- > --- POWER (2) -------- (None) > --- PROPULSION (6) --- (None) > --- UTILITY (12) ----- (None) > --- WEAPON (5) ------- (None) > --- INVENTORY (5) ---- Light Antimatter Reactor 2N-1CE's Frost Array Medium Storage Unit Improved Transmission Jammer Advanced KE Penetrator Peak State ------------ > --- POWER ------------ Backup Power III Light Quantum Reactor > --- PROPULSION ------- Antigrav System Improved Antigrav System Antigrav Array Antigrav Array > --- UTILITY ---------- Medium Storage Unit Experimental Optical Array Improved Signal Interpreter Improved Melee Analysis Suite Advanced Target Analyzer Advanced Target Analyzer Advanced Transmission Jammer Layered Medium Armor Plating Centrium Light Armor Plating Improved Hacking Suite Advanced Hacking Suite Improved Corruption Screen > --- WEAPON ----------- Helical Railgun Thunder Hammer Phasing Sabre Ionic Axe Force Lance > --- INVENTORY -------- Light Antimatter Reactor Quantum Reactor Improved Antigrav System 2N-1CE's Frost Array Improved Remote Force Field Enhanced Quantum Rifle Advanced KE Penetrator Advanced KE Penetrator Micro-nuke Launcher Thunder Hammer [Rating: 168] Favorites ----------- Power Micro Fission Core Engine Light Ion Engine Power Core Micro Fission Core Reactor Light Quantum Reactor Propulsion Combat Gravmag System Treads Light Treads Leg Improved Carbon-fiber Leg Wheel Wheel Hover Unit Combat Gravmag System Flight Unit Improved Surge Thruster Utility Medium Storage Unit Device Improved Terrain Scanner Storage Medium Storage Unit Processor Improved Signal Interpreter Hackware Improved Hacking Suite Protection Improved Medium Armor Plating Weapon Ripper Energy Gun Particle Gun Energy Cannon Heavy Plasma Cannon Ballistic Gun Hypervelocity Coil Gun Ballistic Cannon Light Cannon Launcher Missile Launcher Impact Weapon Thunder Hammer Slashing Weapon Ripper Piercing Weapon Force Lance Special Melee Weapon Improved Datajack Build | -11 -10 -10 -10 -9 -8 -7 -6 -5 -5 -5 -5 -5 -4 -4 -4 -4 -3 -3 -2 -2 -1 ------- Run | Yrd Mat Min Exi Min Mat Fac Fac Fac Ext Cet Arc Hub Fac Upp Upp War Pro Res Res Tes Acc Slots Evolved 18 | . . . . . 4 2 2 2 . . . . 2 . . . . 2 2 . 2 Power 1 | . . . . . . . 1 . . . . . . . . . . . . . . Propulsion 4 | . . . . . 1 . . 1 . . . . 1 . . . . . 1 . . Utility 10 | . . . . . 2 2 1 . . . . . 1 . . . . 2 1 . 1 Weapon 3 | . . . . . 1 . . 1 . . . . . . . . . . . . 1 Parts Attached 212 | 5 7 2 1 . 22 15 22 41 15 3 1 13 9 1 1 1 . 10 17 4 22 Power 22 | . 1 . . . 3 1 3 3 3 . . 1 1 . . . . 2 2 . 2 Engine 9 | . 1 . . . 2 . 2 2 2 . . . . . . . . . . . . Core 7 | . . . . . 1 1 1 1 1 . . 1 1 . . . . . . . . Reactor 6 | . . . . . . . . . . . . . . . . . . 2 2 . 2 Propulsion 59 | 2 1 . . . 7 4 6 14 . . 1 6 3 . . . . 1 3 . 11 Treads 8 | 2 1 . . . 3 . 2 . . . . . . . . . . . . . . Leg 14 | . . . . . 4 4 2 . . . . 3 . . . . . . . . 1 Wheel 2 | . . . . . . . 2 . . . . . . . . . . . . . . Hover 28 | . . . . . . . . 10 . . 1 3 3 . . . . 1 3 . 7 Flight 7 | . . . . . . . . 4 . . . . . . . . . . . . 3 Utility 81 | 1 4 1 . . 6 5 5 14 8 1 . 6 4 . 1 1 . 7 8 3 6 Device 28 | . 3 . . . 2 4 2 2 1 . . 3 2 . . 1 . 1 3 2 2 Storage 6 | 1 1 . . . . . . 1 . . . 1 . . . . . . . . 2 Processor 19 | . . . . . 1 . . 8 2 . . . . . . . . 3 3 1 1 Hackware 6 | . . . . . 1 . . 2 . . . . . . . . . 2 1 . . Protection 22 | . . 1 . . 2 1 3 1 5 1 . 2 2 . 1 . . 1 1 . 1 Artifact . | . . . . . . . . . . . . . . . . . . . . . . Weapon 50 | 2 1 1 1 . 6 5 8 10 4 2 . . 1 1 . . . . 4 1 3 Energy Gun 9 | 1 . 1 1 . 1 2 1 . 1 . . . . . . . . . . . 1 Energy Cannon 2 | . . . . . . . . . 1 1 . . . . . . . . . . . Ballistic Gun 19 | 1 1 . . . 2 1 6 6 . . . . 1 . . . . . . . 1 Ballistic Cannon 2 | . . . . . 1 1 . . . . . . . . . . . . . . . Launcher 3 | . . . . . 1 1 . . . . . . . . . . . . . . 1 Special Weapon . | . . . . . . . . . . . . . . . . . . . . . . Impact Weapon 4 | . . . . . . . . 3 . . . . . . . . . . 1 . . Slashing Weapon 8 | . . . . . . . . 1 2 1 . . . 1 . . . . 3 . . Piercing Weapon 2 | . . . . . 1 . . . . . . . . . . . . . . 1 . Special Melee Weapon 1 | . . . . . . . 1 . . . . . . . . . . . . . . Unidentified Prototypes 15 | . . . . . 3 . . 1 . 1 . 2 1 . . 1 . . 1 3 2 Corrupted Parts 3 | . . . . . . 1 2 . . . . . . . . . . . . . . System Corruption 15 | . . . . . . 1 14 . . . . . . . . . . . . . . Parts Lost 108 | . 3 1 . . 5 4 19 13 13 5 . 4 . . 1 1 . 2 11 4 22 Power 18 | . . . . . 2 1 3 1 3 . . 1 . . 1 1 . 2 2 . 1 Propulsion 29 | . 1 . . . 1 1 5 5 1 2 . 2 . . . . . . . 2 9 Utility 36 | . 1 . . . 1 1 6 3 7 1 . 1 . . . . . . 8 2 5 Weapon 25 | . 1 1 . . 1 1 5 4 2 2 . . . . . . . . 1 . 7 Highest Loss Streak 16 | . 3 1 . . 2 3 11 6 3 3 . 2 . . 1 1 . 1 5 4 16 To Critical Strikes 1 | . . . . . . . . . . . . . . . . . . . . . 1 Average Backups 9 | 2 11 13 13 10 9 10 7 6 9 9 9 9 9 10 10 10 10 8 9 9 9 Power 1 | . 2 2 2 1 1 1 . . 1 3 3 1 1 . . . . . . 1 1 Propulsion 1 | 1 2 2 2 2 2 1 . . 1 1 . 1 1 1 1 1 1 1 1 2 . Utility 3 | . 2 4 3 4 3 5 4 3 1 1 2 2 3 5 5 5 5 3 2 3 2 Weapon 3 | . 3 4 5 3 2 2 2 2 4 3 4 4 4 4 4 4 4 3 3 3 4 Tool/Special . | . . . . . . . . . . . . . . . . . . . . . . Unused Backups 29 | . . 1 4 . 5 2 1 3 6 . . . 1 . . 1 . 1 1 . 3 Power 4 | . . . 2 . . . . . . . . . . . . . . . 1 . 1 Propulsion 3 | . . . . . 2 1 . . . . . . . . . . . . . . . Utility 10 | . . . . . . 1 1 2 4 . . . 1 . . . . . . . 1 Weapon 11 | . . 1 2 . 2 . . 1 2 . . . . . . 1 . 1 . . 1 Tool/Special 1 | . . . . . 1 . . . . . . . . . . . . . . . . Average Slot Usage (%) 88 | . 85 100 100 100 98 95 80 75 95 90 88 95 91 94 93 93 89 92 86 87 81 Engine 4 | . 3 14 14 14 6 5 2 4 4 5 5 2 5 5 4 4 . . 1 4 2 Core 2 | . . . . . 2 1 6 . 2 . . 4 3 5 5 5 5 2 . . . Treads 3 | . 27 28 28 28 11 . 2 1 . . . . . . . . . . . . . Leg 4 | . . . . . 14 21 11 . . . . 8 . . . . . . . . . Hover 11 | . . . . . . . . 12 23 20 17 13 21 21 21 21 21 19 17 16 12 Device 6 | . 11 6 . . 5 20 14 2 . . . 4 5 5 7 5 5 8 6 . 2 Storage 5 | . 14 14 14 14 9 7 3 2 5 5 5 5 5 5 5 5 5 4 4 4 6 Processor 15 | . . . . . 8 7 3 13 26 29 29 23 21 21 21 21 21 23 20 23 21 Hackware 2 | . . . . . 6 . . 3 . . . . . . . . . 3 5 8 7 Protection 6 | . . 8 14 14 5 6 9 3 6 5 5 4 9 10 7 10 10 4 7 8 4 Energy Gun 2 | . 9 11 14 14 7 5 5 . . . . . . . . . . . . . . Ballistic Gun 6 | . 18 16 14 14 11 15 12 13 1 1 . . . . . . 1 . . . 2 Impact Weapon 4 | . . . . . . . . 4 17 3 5 5 5 5 5 4 3 4 6 4 4 Slashing Weapon 5 | . . . . . . . . . 2 13 17 17 15 15 15 15 15 14 10 8 6 Peak Build Rating 168 | 5 8 9 15 15 41 49 81 97 93 82 76 85 98 97 98 96 90 120 146 154 168 Average Rating 77 | 3 7 8 10 15 32 44 61 77 85 72 70 77 93 97 96 91 89 114 136 143 149 On Entrance 66 | . 5 8 9 15 15 39 49 79 93 82 70 76 78 97 97 89 89 89 117 134 123 Naked Turns 22 | . . . . . . . . . . . . . . . . . . . . . 22 Heaviest Build 109 | 8 29 29 30 30 36 44 99 109 57 46 40 56 54 53 53 49 47 65 85 64 63 Greatest Support 78 | 40 40 40 40 40 60 56 53 56 56 53 45 58 57 57 57 57 57 63 78 73 78 Greatest Overweight (x) 10 | . 1 . . . 10 1 9 10 2 1 1 1 1 . . . . 3 1 1 1 Average Overweight (x) . | . . . . . . . 3 1 . . . . . . . . . . . . . Largest Inventory Capacity 15 | 8 15 15 15 15 15 15 15 10 10 10 10 10 10 10 10 10 10 10 10 10 10 Average Capacity 10 | 7 14 15 15 15 15 15 11 7 10 10 10 10 10 10 10 10 10 10 10 10 9 Most Carried 15 | 5 14 15 15 15 15 15 15 10 10 10 10 10 10 10 10 10 10 10 10 10 10 Average Carried 10 | 3 11 14 14 15 14 14 11 6 9 9 9 9 9 10 10 9 10 9 9 9 9 Final Capacity 15 | 8 15 15 15 15 15 15 5 10 10 10 10 10 10 10 10 10 10 10 10 10 5 Final Carried 15 | 5 12 15 15 15 15 15 5 10 10 10 10 10 10 10 10 10 10 10 10 10 5 Class Distribution -------------------- 43% | Scavenger-Gladiator 16% | Scavenger-Skirmisher 12% | Skirmisher 9% | Mutant 7% | Scavenger-Scout 4% | Scavenger-Mutant Dominant Class ---------------- Mutant | -10/Materials Mutant | -10/Mines Mutant | -10/Exiles Mutant | -9/Mines Skirmisher | -8/Materials Skirmisher | -7/Factory Scavenger-Skirmisher | -6/Factory Scavenger-Skirmisher | -5/Factory Scavenger-Gladiator | -5/Extension Scavenger-Gladiator | -5/Cetus Scavenger-Gladiator | -5/Archives Scavenger-Gladiator | -5/Hub_04(d) Scavenger-Gladiator | -4/Factory Scavenger-Gladiator | -4/Upper Caves Scavenger-Gladiator | -4/Upper Caves Scavenger-Gladiator | -4/Warlord Scavenger-Gladiator | -3/Proximity Caves Scavenger-Scout | -3/Research Scavenger-Gladiator | -2/Research Scavenger-Gladiator | -2/Testing Scavenger-Gladiator | -1/Access Resources | -11 -10 -10 -10 -9 -8 -7 -6 -5 -5 -5 -5 -5 -4 -4 -4 -4 -3 -3 -2 -2 -1 ----------- Run | Yrd Mat Min Exi Min Mat Fac Fac Fac Ext Cet Arc Hub Fac Upp Upp War Pro Res Res Tes Acc Matter Collected 6206 | 175 328 20 . 15 693 696 653 1302 759 218 10 299 196 47 47 55 . 296 198 . 199 Remotely 213 | . . . . . 30 . . 183 . . . . . . . . . . . . . Salvage Created 10173 | . 476 30 . . 915 687 1412 1744 1441 75 . 1016 437 . 89 447 12 548 341 . 503 Parts 427 | . 37 3 . . 55 27 78 76 43 5 . 21 11 . . 6 2 14 7 . 42 Haulers Intercepted 2 | . . . . . 2 . . . . . . . . . . . . . . . . Recyclers Shooed 9 | . . . . . 2 4 . 3 . . . . . . . . . . . . . Parts Field Recycled . | . . . . . . . . . . . . . . . . . . . . . . Retrieved Matter . | . . . . . . . . . . . . . . . . . . . . . . Parts Self-Destructed 3 | . . . . . . . . . . . . . . . 1 . 2 . . . . Prevented 4 | . . . . . . . . . . . . . . . 4 . . . . . . Kills | -11 -10 -10 -10 -9 -8 -7 -6 -5 -5 -5 -5 -5 -4 -4 -4 -4 -3 -3 -2 -2 -1 ------- Run | Yrd Mat Min Exi Min Mat Fac Fac Fac Ext Cet Arc Hub Fac Upp Upp War Pro Res Res Tes Acc Combat Hostiles Destroyed 146 | . 14 2 . . 17 13 16 20 19 1 . 7 3 . 2 8 2 9 5 . 8 Melee 42 | . . . . . . . . 6 9 . . 4 3 . 2 3 2 4 3 . 6 Guns 73 | . 14 2 . . 15 13 11 14 2 1 . . . . . 1 . . . . . Cannons 2 | . . . . . 2 . . . . . . . . . . . . . . . . AOE 7 | . . . . . . . 5 . . . . . . . . . . . . . 2 Classes Destroyed 20 | . 4 . . . 5 2 1 1 2 . . . . . . 2 1 1 . . 1 Worker 23 | . . . . . 2 . 7 5 . . . 5 1 . . . . . . . 3 Builder 17 | . . . . . . . 7 . 2 . . 1 . . . . . . . . 7 Hauler 2 | . . . . . 2 . . . . . . . . . . . . . . . . Recycler 16 | . . . . . 2 1 1 4 2 . . 4 2 . . . . . . . . Operator 11 | . 1 . . . 2 1 . 2 2 . . 1 1 . . . . 1 . . . Drone 2 | . . . . . . . . . . . . . . . . . 2 . . . . Watcher 11 | . 1 . . . 1 1 1 3 2 . . . . . . . . 1 1 . . Swarmer 22 | . 5 2 . . 5 2 . 2 3 . . . . . . . . 2 1 . . Cutter 3 | . . . . . . . . 3 . . . . . . . . . . . . . Saboteur 1 | . . . . . . . . . . . . . . . . . . . . . 1 Grunt 49 | . 9 . . . 6 6 7 5 6 . . 4 . . . 2 . 3 . . 1 Brawler 1 | . . . . . . 1 . . . . . . . . . . . . . . . Protector 1 | . . . . . . . . . . . . . . . . 1 . . . . . Sentry 20 | . . . . . 4 2 3 1 6 . . . 1 . . . . . 3 . . Specialist 1 | . . . . . . . . . . . . . . . . 1 . . . . . Hunter 11 | . . . . . 2 . 4 . 2 . . 1 . . . 2 . . . . . Programmer 30 | . . . . . . 2 4 9 . . . 2 2 . 2 . . 3 . . 6 Behemoth 4 | . . . . . . . . . 1 . . . . . . 2 . . 1 . . Cetus Guard 1 | . . . . . . . . . . 1 . . . . . . . . . . . Striker 1 | . . . . . . . . . . . . . . . . . . 1 . . . Butcher 1 | . . . . . . . . . 1 . . . . . . . . . . . . Best Kill Streak 17 | . 6 2 . . 6 3 17 4 3 1 . 8 1 . 1 4 6 3 1 . 5 Combat Bots Only 6 | . 6 2 . . 4 3 5 4 3 1 . 3 1 . 1 4 6 3 1 . 3 Max Kills in Single Turn 5 | . 2 1 . . 1 1 5 2 1 1 . 1 1 . 1 1 1 2 1 . 3 Gunslinging 1 | . 1 . . . . . 1 . . . . . . . . . . . . . . Exploded 2 | . . . . . . . 2 . . . . . . . . . . . . . 1 Melee 1 | . . . . . . . . 1 1 . . 1 1 . 1 1 1 1 1 . 1 Uniques/NPCs Destroyed . | . . . . . . . . . . . . . . . . . . . . . . Combat | -11 -10 -10 -10 -9 -8 -7 -6 -5 -5 -5 -5 -5 -4 -4 -4 -4 -3 -3 -2 -2 -1 -------- Run | Yrd Mat Min Exi Min Mat Fac Fac Fac Ext Cet Arc Hub Fac Upp Upp War Pro Res Res Tes Acc Hostile Shots Fired 1659 | . 81 24 . . 74 141 284 134 245 46 1 38 24 . 26 25 . 34 85 56 341 Missed 553 | . 21 10 . . 11 38 101 45 92 19 . 10 8 . 7 8 . 11 34 8 130 Deflected 8 | . . . . . . . . . . . . . . . . . . . . . 8 Hits 1106 | . 60 14 . . 63 103 183 89 153 27 1 28 16 . 19 17 . 23 51 48 211 Melee 11 | . . . . . . 3 . 1 2 . . . . . . . . 3 . . 2 Projectile 1095 | . 60 14 . . 63 100 183 88 151 27 1 28 16 . 19 17 . 20 51 48 209 AOE 7 | . . . . . . . . 5 . . . . . . . 1 . . 1 . . Critical Strikes 52 | . . . . . 2 2 7 8 6 3 . 3 1 . 2 2 . 2 4 . 10 Part Disruptions 7 | . . . . . . . 2 . . . . . 1 . . . . . . . 4 Damage Taken 20133 | . 624 112 . . 888 1263 2253 2298 2126 578 76 674 333 . 323 448 . 696 1917 988 4536 Core 3488 | . 104 19 . . 36 81 441 172 299 100 . 58 . . 46 49 . 98 237 124 1624 Absorbed by Shields 553 | . . . . . . 27 30 111 18 147 . . . . 53 . . . 132 . 35 Redirected to Shielding 59 | . . . . . 59 . . . . . . . . . . . . . . . . Ignored by Resistances 16 | . . . . . . . . . 16 . . . . . . . . . . . . Regen/Repaired (Parts) 1322 | . . . . . . . . . . . . . 274 . . 204 . . 596 . 248 Core Remaining (%) 74 | 100 . . . 50 93 88 48 . . . . 37 . . . . 91 92 . 75 . Volleys Fired 431 | . 37 6 . . 64 58 61 47 105 20 . . . . . 5 24 . . . 4 Largest 4 | . 2 2 . . 3 3 3 4 1 2 . . . . . 1 1 . . . 1 Hottest 141 | . 60 60 . . 115 118 141 135 75 123 . . . . . 35 35 . . . 49 Shots Fired 842 | . 74 11 . . 190 157 123 124 104 26 . . . . . 5 24 . . . 4 Gun 757 | . 74 11 . . 133 148 115 124 104 19 . . . . . 5 24 . . . . Cannon 71 | . . . . . 57 7 . . . 7 . . . . . . . . . . . Launcher 14 | . . . . . . 2 8 . . . . . . . . . . . . . 4 Special . | . . . . . . . . . . . . . . . . . . . . . . Kinetic 641 | . 58 7 . . 134 126 63 124 81 19 . . . . . 5 24 . . . . Thermal 151 | . . 4 . . 56 9 52 . 23 7 . . . . . . . . . . . Explosive 11 | . . . . . . 2 5 . . . . . . . . . . . . . 4 Electromagnetic 39 | . 16 . . . . 20 3 . . . . . . . . . . . . . . Robot Hit Streak 28 | . 19 4 . . 16 17 10 8 28 10 . . . . . 2 . . . . 2 Robot Miss Streak 7 | . 3 2 . . 5 5 7 3 3 3 . . . . . 1 . . . . 1 Penetration Max 2 | . . . . . . . 1 1 2 1 . . . . . 1 . . . . . Secondary Targets 9 | . 3 . . . . 1 2 3 . . . . . . . . . . . . . Max Gunslinging Chain 1 | . 1 . . . . 1 1 1 . . . . . . . . . . . . . Shots Hit Robots 766 | . 52 7 . . 109 100 73 108 123 19 . 35 17 . 13 16 3 28 37 . 26 Core Hits 386 | 1 25 3 . . 52 37 123 42 30 7 . 6 5 . 2 5 2 4 9 . 33 Critical Kills 26 | . . . . . . . . 15 2 1 . 3 . . 1 . . 1 . . 3 Critical Parts Destroyed 90 | . . . . . . 1 . 30 25 1 . 8 3 . 3 3 . 8 5 . 3 Critical Strikes 146 | . . . . . 3 2 3 45 38 3 . 13 6 . 4 4 . 12 6 . 7 Burn 8 | . . . . . 3 . 3 . 2 . . . . . . . . . . . . Destroy 50 | . . . . . . 1 . 28 18 3 . . . . . . . . . . . Corrupt 1 | . . . . . . 1 . . . . . . . . . . . . . . . Smash 77 | . . . . . . . . 17 18 . . 11 3 . 4 3 . 9 6 . 6 Sever 10 | . . . . . . . . . . . . 2 3 . . 1 . 3 . . 1 Melee Attacks 558 | . . . . . 7 . 3 69 82 16 . 63 48 . 19 16 25 62 63 17 68 Impact 372 | . . . . . . . . 64 71 10 . 39 29 . 12 10 16 41 41 6 33 Slashing 145 | . . . . . . . . 5 11 6 . 24 19 . 7 6 9 21 22 3 12 Piercing 38 | . . . . . 7 . . . . . . . . . . . . . . 8 23 Sneak Attacks 45 | . . . . . 2 . 3 8 11 . . 10 3 . . . . 1 . . 7 Combat Hostiles 6 | . . . . . . . . . 6 . . . . . . . . . . . . Follow-up Attacks 80 | . . . . . . . . 6 15 . . 10 8 . 3 5 1 9 16 . 7 Damage Inflicted 27594 | 2 616 73 . . 1751 1974 3389 3438 4131 649 . 2282 1063 . 707 797 193 1513 1774 . 3242 Guns 7834 | . 603 73 . . 1105 1879 1546 1293 726 483 . . . . . 126 . . . . . Cannons 708 | . . . . . 466 76 . . . 166 . . . . . . . . . . . Explosions 3437 | . . . . . . . 1825 . . . . . . . . . . . . . 1612 Melee 15513 | . . . . . 130 . . 2145 3405 . . 2282 1063 . 707 671 193 1513 1774 . 1630 Ramming 102 | 2 13 . . . 50 19 18 . . . . . . . . . . . . . . Kinetic 6661 | . 484 39 . . 1040 1654 1050 1293 492 483 . . . . . 126 . . . . . Thermal 1564 | . . 34 . . 531 103 496 . 234 166 . . . . . . . . . . . Explosive 2020 | . . . . . . . 408 . . . . . . . . . . . . . 1612 Electromagnetic 1734 | . 119 . . . . 198 1417 . . . . . . . . . . . . . . Impact 12547 | . . . . . . . . 2066 2992 . . 1921 781 . 512 516 149 1215 1212 . 1183 Slashing 2574 | . . . . . . . . 79 413 . . 361 282 . 195 155 44 298 562 . 185 Piercing 392 | . . . . . 130 . . . . . . . . . . . . . . . 262 Highest Corruption 21 | . . . . . 2 4 21 12 15 15 15 17 4 4 6 6 . 1 2 2 4 Average Corruption 9 | . . . . . 2 2 16 6 14 15 15 15 3 4 4 6 . 1 1 2 2 Corruption Purged . | . . . . . . . . . . . . . . . . . . . . . . Corruption Blocked 15 | . . . . . . . . . . . . . . . . . . . . . 15 Effects 343 | . . . . . 11 15 55 44 110 27 8 29 10 5 10 . . 4 11 3 1 Message Errors 78 | . . . . . 2 2 15 8 24 6 5 4 1 2 4 . . 1 2 1 1 Matter Fused 82 | . . . . . 1 3 10 13 24 6 . 12 5 2 3 . . 1 2 . . Heat Flow Errors 49 | . . . . . 3 2 6 6 16 5 1 5 2 . 1 . . 1 1 . . Energy Discharges 44 | . . . . . . 3 6 5 14 5 1 3 1 . 1 . . . 5 . . Parts Rejected 3 | . . . . . . 1 . . 2 . . . . . . . . . . . . Parts Fused 3 | . . . . . . . . . 2 . . 1 . . . . . . . . . Data Loss (minor) 37 | . . . . . 1 1 9 6 10 1 1 3 . 1 1 . . 1 . 2 . Data Loss (major) 14 | . . . . . 2 . 1 4 4 1 . 1 . . . . . . 1 . . Misfires 8 | . . . . . 1 2 1 . 3 1 . . . . . . . . . . . Alerts 7 | . . . . . . . 1 2 3 . . . 1 . . . . . . . . Misdirections 9 | . . . . . . . 3 . 4 2 . . . . . . . . . . . Weapon Failures 9 | . . . . . 1 1 3 . 4 . . . . . . . . . . . . Overload Shots . | . . . . . . . . . . . . . . . . . . . . . . Overflow Damage 5889 | . . . . . 39 2 10 1086 1316 7 . 982 404 . 313 299 52 554 329 . 496 Projectiles 47 | . . . . . . 2 . . 30 7 . . . . . . . 8 . . . Explosions 17 | . . . . . . . 10 . . . . . . . . . . . . . 7 Melee 5825 | . . . . . 39 . . 1086 1286 . . 982 404 . 313 299 52 546 329 . 489 Knockbacks 61 | . . . . . 8 1 . 10 11 . . 9 3 . 2 5 . 6 1 . 5 Impact 47 | . . . . . . . . 10 10 . . 8 3 . 2 3 . 5 1 . 5 Kinetic 8 | . . . . . 7 1 . . . . . . . . . . . . . . . Secondary 6 | . . . . . 1 . . . 1 . . 1 . . . 2 . 1 . . . Self-Inflicted Damage 320 | . . . . . . 155 165 . . . . . . . . . . . . . . Shots 8 | . . . . . . 2 6 . . . . . . . . . . . . . . Rammed 4 | 1 2 . . . 1 . . . . . . . . . . . . . . . . Targets Rammed 15 | 1 3 . . . 4 4 3 . . . . . . . . . . . . . . Kicked 10 | . . . . . 3 4 3 . . . . . . . . . . . . . . Crushed 1 | . 1 . . . . . . . . . . . . . . . . . . . . Highest Temperature 361 | . 20 . . . 361 309 331 244 329 360 271 248 350 300 282 100 7 210 275 34 9 Average Temperature 73 | . 7 . . . 118 77 83 75 86 140 141 87 45 152 82 4 7 51 42 7 9 Received Heat Transfer 2822 | . 279 . . . 252 377 663 255 255 45 . 66 9 . . 185 . 9 202 63 162 Effects 13 | . . . . . 2 1 1 . 1 1 . . 1 2 4 . . . . . . Energy Bleed 5 | . . . . . . 1 . . 1 1 . . . 1 1 . . . . . . Interference 6 | . . . . . 2 . . . . . . . . 1 3 . . . . . . Matter Decay 1 | . . . . . . . . . . . . . 1 . . . . . . . . Damage (minor) 1 | . . . . . . . 1 . . . . . . . . . . . . . . Siege Activations . | . . . . . . . . . . . . . . . . . . . . . . Martial Activations . | . . . . . . . . . . . . . . . . . . . . . . Shielding Activations 1 | . . . . . . . . . . . . . . . . . . . . . 1 Total Turns 5 | . . . . . . . . . . . . . . . . . . . . . 5 Longest Duration 5 | . . . . . . . . . . . . . . . . . . . . . 5 Robots Disrupted 3 | . . . . . . . 3 . . . . . . . . . . . . . . Combat Hostiles . | . . . . . . . . . . . . . . . . . . . . . . Robots Corrupted 40 | . . . . . . . 1 4 12 . . 9 2 . . 4 . 5 2 . 1 Combat Hostiles 22 | . . . . . . . . . 8 . . 3 . . . 4 . 5 2 . . Parts Fried 91 | . . . . . . . 12 19 20 . . 12 11 . . 10 . 4 . . 3 Impact Corruptions 168 | . . . . . . . . 29 36 . . 33 11 . 10 10 2 16 9 . 12 Robots Melted . | . . . . . . . . . . . . . . . . . . . . . . Combat Hostiles . | . . . . . . . . . . . . . . . . . . . . . . Parts Melted 5 | . . . . . 3 1 1 . . . . . . . . . . . . . . Heat Transferred 3960 | . . 75 . . 1443 222 1527 . 518 175 . . . . . . . . . . . Parts Sabotaged 1 | . . . . . . . . . . . . . . . . . . . . . 1 Parts Stolen . | . . . . . . . . . . . . . . . . . . . . . . Parts Stripped . | . . . . . . . . . . . . . . . . . . . . . . Power Chain Reactions 1 | . . . . . . . 1 . . . . . . . . . . . . . . Alert | -11 -10 -10 -10 -9 -8 -7 -6 -5 -5 -5 -5 -5 -4 -4 -4 -4 -3 -3 -2 -2 -1 ------- Run | Yrd Mat Min Exi Min Mat Fac Fac Fac Ext Cet Arc Hub Fac Upp Upp War Pro Res Res Tes Acc Maximum Alert Level 5 | . 1 . . . 1 1 2 2 1 . . 1 . . . . . . . 5 4 Low Security (%) 72 | 100 76 100 . 100 96 97 53 42 80 100 100 72 100 . . . . 100 100 . . Level 1 13 | . 23 . . . 3 2 1 53 19 . . 27 . . . . . . . . . Level 2 6 | . . . . . . . 45 3 . . . . . . . . . . . . . Level 3 5 | . . . . . . . . . . . . . . . . . . . . . 97 Level 4 . | . . . . . . . . . . . . . . . . . . . . . 2 Level 5 . | . . . . . . . . . . . . . . . . . . . . . . High Security . | . . . . . . . . . . . . . . . . . . . . . . Max Security 1 | . . . . . . . . . . . . . . . . . . . . 99 . Peak Influence 1708 | . 245 89 . . 215 279 574 402 286 127 118 317 147 . . . . 150 100 1708 1100 Initial 1100 | . . 79 . . . 97 134 238 196 77 . 13 147 . . . . 150 22 24 1100 Average 186 | . 78 36 . . 91 42 244 217 110 57 64 145 64 . . . . 27 13 1642 967 Influence Increases 7998 | . 423 50 . . 586 599 978 1287 957 339 158 654 275 . 50 205 10 462 351 129 485 Destroy 0b10 Robot/C 3680 | . 280 40 . . 340 260 420 580 540 160 80 280 80 . 40 140 . 180 100 . 160 Destroy 0b10 Robot/NC 445 | . 10 . . . 50 15 80 75 45 10 . 60 20 . . 5 10 10 5 . 50 Destroy Leader 730 | . 52 10 . . 98 52 112 136 56 . . 70 30 . 10 . . 12 42 . 50 Allied During Kill 533 | . . . . . . . 37 112 70 131 61 122 . . . . . . . . . Trap Triggered on 0b10 40 | . . . . . . . 20 . . . . . . . . . . 20 . . . Successful Hack 186 | . 6 . . . 28 28 6 31 27 . . 5 55 . . . . . . . . Select Force Hacks 90 | . 60 . . . . 30 . . . . . . . . . . . . . . . Disable Machine 615 | . . . . . 15 105 240 60 45 15 15 45 45 . . . . . . 30 . Destroy Structure 479 | . . . . . 10 79 3 68 24 8 2 42 30 . . . . 30 24 24 135 Advance Influence 150 | . . . . . . . . . . . . . . . . . . 150 . . . Partial Spotted 105 | . . . . . . . . 15 30 15 . 15 15 . . . . . 15 . . Lose Combat Pursuer 945 | . 15 . . . 45 30 60 210 120 . . 15 . . . 60 . 60 165 75 90 Influence Decreases 8695 | . 218 255 . . 371 539 767 1371 1220 478 120 390 541 36 28 134 103 422 346 61 1295 Entered New Map 1926 | . . 126 . . . 118 141 248 206 62 . 25 155 14 . 22 93 . 18 21 677 Time Decay 4862 | . 188 119 . . 321 387 372 682 664 280 100 272 346 22 28 102 10 280 291 . 398 Lost Part 953 | . 30 10 . . 50 34 174 125 130 50 . 33 . . . 10 . 10 37 40 220 Lost Ally 822 | . . . . . . . 80 316 220 86 20 60 40 . . . . . . . . Purge Threat 132 | . . . . . . . . . . . . . . . . . . 132 . . . Squads Dispatched 70 | . 3 . . . 2 6 7 12 1 . . 4 3 . . . . 6 3 15 8 Investigation 14 | . 3 . . . 1 2 2 1 . . . 2 1 . . . . 2 . . . Extermination 17 | . . . . . . 2 3 6 . . . 1 2 . . . . . . . 3 Reinforcement 21 | . . . . . 1 2 2 5 1 . . 1 . . . . . 4 3 . 2 Assault 17 | . . . . . . . . . . . . . . . . . . . . 14 3 Garrison 1 | . . . . . . . . . . . . . . . . . . . . 1 . Intercept . | . . . . . . . . . . . . . . . . . . . . . . Searches Triggered . | . . . . . . . . . . . . . . . . . . . . . . Construction Impeded 5 | . . . . . . . 2 1 1 . . . . . . . . . . . 1 Haulers Reinforced 4 | . . . . . . . . . . . . 1 . . . . . 1 2 . . Active Scanning Responses . | . . . . . . . . . . . . . . . . . . . . . . Cargo Convoy Interrupts . | . . . . . . . . . . . . . . . . . . . . . . Stealth | -11 -10 -10 -10 -9 -8 -7 -6 -5 -5 -5 -5 -5 -4 -4 -4 -4 -3 -3 -2 -2 -1 --------- Run | Yrd Mat Min Exi Min Mat Fac Fac Fac Ext Cet Arc Hub Fac Upp Upp War Pro Res Res Tes Acc Distress Signals 28 | . . . . . 5 2 2 1 1 2 . 2 . . . . . 5 7 . 1 Communications Jammed 17 | . . . . . . . . . . . . . . . . . . . . . 17 Distress Signals 1 | . . . . . . . . . . . . . . . . . . . . . 1 Times Spotted 414 | . 22 3 . . 29 22 38 47 43 11 1 20 5 . 2 25 2 25 53 21 45 Peak Tracking Total 25 | . 6 3 . . 5 4 9 9 4 5 1 6 2 . 2 9 2 5 7 17 25 Tactical Retreats 39 | . 1 . . . 3 1 3 9 7 . . 1 . . . 1 . 3 5 3 2 Traps | -11 -10 -10 -10 -9 -8 -7 -6 -5 -5 -5 -5 -5 -4 -4 -4 -4 -3 -3 -2 -2 -1 ------- Run | Yrd Mat Min Exi Min Mat Fac Fac Fac Ext Cet Arc Hub Fac Upp Upp War Pro Res Res Tes Acc Traps Triggered 21 | . 1 . . . 2 4 4 6 1 . . 1 1 . . . . . . . 1 Indirectly 3 | . . . . . . . 3 . . . . . . . . . . . . . . Trap Hack Attempts 39 | . . . . . . . 39 . . . . . . . . . . . . . . Triggered . | . . . . . . . . . . . . . . . . . . . . . . Disarmed . | . . . . . . . . . . . . . . . . . . . . . . Reprogrammed 4 | . . . . . . . 4 . . . . . . . . . . . . . . Reused 4 | . . . . . . . 2 . . . . . . . . . . 2 . . . Traps Extracted . | . . . . . . . . . . . . . . . . . . . . . . Installed 5 | . . . . . . . . . . . . . . . . . . 5 . . . Triggered 4 | . . . . . . . 2 . . . . . . . . . . 2 . . . Machines | -11 -10 -10 -10 -9 -8 -7 -6 -5 -5 -5 -5 -5 -4 -4 -4 -4 -3 -3 -2 -2 -1 ---------- Run | Yrd Mat Min Exi Min Mat Fac Fac Fac Ext Cet Arc Hub Fac Upp Upp War Pro Res Res Tes Acc Machines Disabled 41 | . . . . . 1 7 16 4 3 1 1 3 3 . . . . . . 2 . Max in Single Turn 7 | . . . . . 1 7 5 1 1 1 . 1 1 . . . . . . 1 . Garrison Access 6 | . . . . . . . . . . . . 1 . . . . . 1 2 1 1 Machines Repaired . | . . . . . . . . . . . . . . . . . . . . . . Machines Dismantled . | . . . . . . . . . . . . . . . . . . . . . . Machines Sabotaged . | . . . . . . . . . . . . . . . . . . . . . . Overloaded Fab Kills . | . . . . . . . . . . . . . . . . . . . . . . Hacking | -11 -10 -10 -10 -9 -8 -7 -6 -5 -5 -5 -5 -5 -4 -4 -4 -4 -3 -3 -2 -2 -1 --------- Run | Yrd Mat Min Exi Min Mat Fac Fac Fac Ext Cet Arc Hub Fac Upp Upp War Pro Res Res Tes Acc Machines Accessed 77 | . 6 . 1 1 7 7 6 8 9 2 1 6 11 . 1 4 . 5 1 . 1 Terminals 53 | . 4 . . 1 7 2 4 7 9 2 . 5 9 . . . . 3 . . . Fabricators 4 | . . . . . . 2 1 . . . . . 1 . . . . . . . . Repair Stations 2 | . . . . . . 1 . . . . . . 1 . . . . . . . . Recycling Units 4 | . 2 . . . . 1 . 1 . . . . . . . . . . . . . Scanalyzers 1 | . . . . . . 1 . . . . . . . . . . . . . . . Garrison Access 6 | . . . . . . . 1 . . . . 1 . . . . . 2 1 . 1 Total Hacks 168 | . 12 . 1 2 21 21 11 18 19 3 4 8 25 . 1 8 . 12 1 . 1 Successful 79 | . 7 . 1 1 9 8 2 9 6 . 4 2 13 . 1 8 . 6 1 . 1 Failed 89 | . 5 . . 1 12 13 9 9 13 3 . 6 12 . . . . 6 . . . Catastrophic 25 | . 2 . . . 3 2 5 2 1 3 . 3 3 . . . . 1 . . . Database Lockouts . | . . . . . . . . . . . . . . . . . . . . . . Manual 92 | . 9 . 1 . 21 9 8 10 8 1 1 7 12 . . . . 5 . . . Terminals 120 | . 8 . . 2 21 7 8 17 19 3 . 7 20 . . . . 8 . . . Fabricators 8 | . . . . . . 4 2 . . . . . 2 . . . . . . . . Repair Stations 5 | . . . . . . 2 . . . . . . 3 . . . . . . . . Recycling Units 7 | . 4 . . . . 2 . 1 . . . . . . . . . . . . . Scanalyzers 6 | . . . . . . 6 . . . . . . . . . . . . . . . Garrison Access 8 | . . . . . . . 1 . . . . 1 . . . . . 4 1 . 1 Terminal Hacks 42 | . 1 . 1 1 5 . . 5 5 . 4 . 7 . 1 8 . 4 . . . Record 13 | . . . . . . . . . 1 . 4 . 1 . . 7 . . . . . Part Schematic 1 | . . . . . 1 . . . . . . . . . . . . . . . . Robot Schematic 1 | . . . . . 1 . . . . . . . . . . . . . . . . Open Door 6 | . . . . . . . . . 4 . . . . . 1 1 . . . . . Branch Access Points 4 | . 1 . . . 1 . . 1 . . . . 1 . . . . . . . . Emergency Access Points 2 | . . . . . 1 . . 1 . . . . . . . . . . . . . Terminal Index 3 | . . . . . 1 . . 1 . . . . 1 . . . . . . . . Alert Level 1 | . . . . . . . . . . . . . 1 . . . . . . . . Unreport Threat 1 | . . . . . . . . . . . . . . . . . . 1 . . . Locate Traps 3 | . . . . . . . . . . . . . 2 . . . . 1 . . . Dispatch Records 2 | . . . . 1 . . . . . . . . . . . . . 1 . . . Zone Layout 4 | . . . . . . . . 2 . . . . 1 . . . . 1 . . . Proto ID Catalog 1 | . . . 1 . . . . . . . . . . . . . . . . . . Fabricator Hacks 4 | . . . . . . . 2 . . . . . 2 . . . . . . . . Load Schematic 2 | . . . . . . . 1 . . . . . 1 . . . . . . . . Build 2 | . . . . . . . 1 . . . . . 1 . . . . . . . . Repair Station Hacks 3 | . . . . . . 1 . . . . . . 2 . . . . . . . . Scan Component 2 | . . . . . . 1 . . . . . . 1 . . . . . . . . Repair 1 | . . . . . . . . . . . . . 1 . . . . . . . . Recycling Unit Hacks 3 | . 2 . . . . . . 1 . . . . . . . . . . . . . Report Inventory 3 | . 2 . . . . . . 1 . . . . . . . . . . . . . Scanalyzer 4 | . . . . . . 4 . . . . . . . . . . . . . . . Insert Component 2 | . . . . . . 2 . . . . . . . . . . . . . . . Analyze 2 | . . . . . . 2 . . . . . . . . . . . . . . . Garrison Access Hacks 4 | . . . . . . . . . . . . 1 . . . . . 1 1 . 1 Seal Access 4 | . . . . . . . . . . . . 1 . . . . . 1 1 . 1 Unauthorized Hacks 19 | . 4 . . . 4 3 . 3 1 . . 1 2 . . . . 1 . . . Terminals 16 | . 2 . . . 4 2 . 3 1 . . 1 2 . . . . 1 . . . Assimilate 1 | . . . . . . . . 1 . . . . . . . . . . . . . Botnet 15 | . 2 . . . 4 2 . 2 1 . . 1 2 . . . . 1 . . . Fabricators . | . . . . . . . . . . . . . . . . . . . . . . Repair Stations . | . . . . . . . . . . . . . . . . . . . . . . Recycling Units 3 | . 2 . . . . 1 . . . . . . . . . . . . . . . Tunnel 3 | . 2 . . . . 1 . . . . . . . . . . . . . . . Scanalyzers . | . . . . . . . . . . . . . . . . . . . . . . Garrison Access . | . . . . . . . . . . . . . . . . . . . . . . Data Cores Recovered 4 | . 1 . . . 1 . . 1 . . . . 1 . . . . . . . . Used 1 | . . . . . . . . . . . . . 1 . . . . . . . . Hacking Detections 62 | . 3 . . 1 7 7 6 7 7 3 . 5 11 . . . . 5 . . . Full Trace Events 6 | . . . . . . 1 2 1 . . . 1 1 . . . . . . . . Feedback Events . | . . . . . . . . . . . . . . . . . . . . . . Feedback Blocked . | . . . . . . . . . . . . . . . . . . . . . . Robot Schematics Acquired 1 | . . . . . 1 . . . . . . . . . . . . . . . . Robots Built 4 | . . . . . . . 2 . . . . . 2 . . . . . . . . Authchips . | . . . . . . . . . . . . . . . . . . . . . . Time 232 | . . . . . . . 116 . . . . . 116 . . . . . . . . Total Robot Build Rating 12 | . . . . . . . 6 . . . . . 6 . . . . . . . . Part Schematics Acquired 3 | . . . . . 1 2 . . . . . . . . . . . . . . . Parts Built . | . . . . . . . . . . . . . . . . . . . . . . Authchips . | . . . . . . . . . . . . . . . . . . . . . . Time . | . . . . . . . . . . . . . . . . . . . . . . Total Part Build Rating . | . . . . . . . . . . . . . . . . . . . . . . Parts Repaired 1 | . . . . . . . . . . . . . 1 . . . . . . . . Time 25 | . . . . . . . . . . . . . 25 . . . . . . . . Parts Recycled . | . . . . . . . . . . . . . . . . . . . . . . Recycled Matter . | . . . . . . . . . . . . . . . . . . . . . . Retrieved Matter . | . . . . . . . . . . . . . . . . . . . . . . Retrieved Components . | . . . . . . . . . . . . . . . . . . . . . . Parts Scanalyzed 2 | . . . . . . 2 . . . . . . . . . . . . . . . Part Schematics Acquired 2 | . . . . . . 2 . . . . . . . . . . . . . . . Parts Damaged 1 | . . . . . . 1 . . . . . . . . . . . . . . . Bothacking | -11 -10 -10 -10 -9 -8 -7 -6 -5 -5 -5 -5 -5 -4 -4 -4 -4 -3 -3 -2 -2 -1 ------------ Run | Yrd Mat Min Exi Min Mat Fac Fac Fac Ext Cet Arc Hub Fac Upp Upp War Pro Res Res Tes Acc Used RIF Installer . | . . . . . . . . . . . . . . . . . . . . . . Robots Hacked 2 | . . . . . . . 2 . . . . . . . . . . . . . . Non-combat 2 | . . . . . . . 2 . . . . . . . . . . . . . . Combat . | . . . . . . . . . . . . . . . . . . . . . . Robot Hacks Applied 3 | . . . . . . . 3 . . . . . . . . . . . . . . no_distress 2 | . . . . . . . 2 . . . . . . . . . . . . . . find_chute 1 | . . . . . . . 1 . . . . . . . . . . . . . . Relay Couplers Released 7 | . . . . . . . 3 . . . . . . . . . . . 2 2 . Machine Destruction 4 | . . . . . . . . . . . . . . . . . . . 2 2 . Programmers 3 | . . . . . . . 3 . . . . . . . . . . . . . . Fabnet Peak Effective % . | . . . . . . . . . . . . . . . . . . . . . . Robots Rewired 15 | . . . . . . . . . 15 . . . . . . . . . . . . Allies Hacked . | . . . . . . . . . . . . . . . . . . . . . . Hacks Repelled . | . . . . . . . . . . . . . . . . . . . . . . Allies | -11 -10 -10 -10 -9 -8 -7 -6 -5 -5 -5 -5 -5 -4 -4 -4 -4 -3 -3 -2 -2 -1 -------- Run | Yrd Mat Min Exi Min Mat Fac Fac Fac Ext Cet Arc Hub Fac Upp Upp War Pro Res Res Tes Acc Total Allies 30 | . . . . 1 . . 2 . 20 5 . . 2 . . . . . . . . Largest Group 10 | . . . . . 1 . 2 . 9 10 6 3 2 . . . . . . . . Highest-Rated Group 757 | . . . . . 31 . 42 . 377 757 485 283 42 . . . . . . . . Highest-Rated Ally 159 | . . . . . 31 . 21 . 159 159 140 96 21 . . . . . . . . Total Orders 11 | . . . . . . . 3 4 2 . . 1 . . . . . 1 . . . STAY 1 | . . . . . . . . . . . . 1 . . . . . . . . . ROAM 1 | . . . . . . . . . 1 . . . . . . . . . . . . FOLLOW 1 | . . . . . . . . . 1 . . . . . . . . . . . . RETURN 8 | . . . . . . . 3 4 . . . . . . . . . 1 . . . Ally Attacks 371 | . . . . . 5 . 41 100 52 97 19 41 16 . . . . . . . . Total Damage 8117 | . . . . . 62 . 737 1353 1272 2127 651 1642 273 . . . . . . . . Kills 52 | . . . . . 1 . 5 14 9 10 4 8 1 . . . . . . . . Allies Corrupted 2 | . . . . . . . . 2 . . . . . . . . . . . . . Allies Melted 3 | . . . . . . . . . . . . 1 . . . 1 . . 1 . . Intel | -11 -10 -10 -10 -9 -8 -7 -6 -5 -5 -5 -5 -5 -4 -4 -4 -4 -3 -3 -2 -2 -1 ------- Run | Yrd Mat Min Exi Min Mat Fac Fac Fac Ext Cet Arc Hub Fac Upp Upp War Pro Res Res Tes Acc Active Infowar (turns) 16777 | . 380 . . . 1158 1476 1404 2005 2516 629 210 666 895 262 405 814 285 1125 1370 260 917 Optics 16397 | . . . . . 1158 1476 1404 2005 2516 629 210 666 895 262 405 814 285 1125 1370 260 917 Terrain 3534 | . . . . . 698 1476 1360 . . . . . . . . . . . . . . Seismic 380 | . 380 . . . . . . . . . . . . . . . . . . . . Machine Analysis 1590 | . . . . . . . . . . . . . . . . . . 1125 465 . . Cloaking 1243 | . . . . . . . . . . . . . 663 262 318 . . . . . . Jamming 512 | . . . . . . . . . . . . . . . . . . . . . 512 Robot Analysis Total . | . . . . . . . . . . . . . . . . . . . . . . Derelict Logs Recovered 4 | . . 1 . 1 . . . . . . . . . 1 1 . . . . . . Drone Launches 55 | . . . . . . . 15 29 . . . . . . . . . 11 . . . Drone Recoveries 25 | . . . . . . . 11 3 . . . . . . . . . 11 . . . Exploration | -11 -10 -10 -10 -9 -8 -7 -6 -5 -5 -5 -5 -5 -4 -4 -4 -4 -3 -3 -2 -2 -1 ------------- Run | Yrd Mat Min Exi Min Mat Fac Fac Fac Ext Cet Arc Hub Fac Upp Upp War Pro Res Res Tes Acc Turns Passed 19874 | 102 629 340 587 128 1172 1476 2240 2797 2538 629 210 666 895 262 405 814 285 1125 1370 260 944 Spaces Moved 16194 | 57 306 195 364 80 612 856 836 2163 1793 524 162 502 970 352 609 902 325 1313 1720 399 1154 Core 53 | 2 . . . . 1 . 3 4 . . . . . . . . . . . . 43 Treads 1261 | 55 306 195 364 80 258 . 3 . . . . . . . . . . . . . . Legs 1762 | . . . . . 353 856 396 . . . . 157 . . . . . . . . . Wheels 801 | . . . . . . . 434 367 . . . . . . . . . . . . . Hover 12180 | . . . . . . . . 1658 1793 524 162 345 970 352 609 902 325 1313 1720 399 1108 Flight 137 | . . . . . . . . 134 . . . . . . . . . . . . 3 Fastest Speed 40 | 50 160 160 160 160 120 120 123 45 67 56 50 50 48 55 55 55 55 55 43 43 40 Average Speed 81 | 156 160 160 160 160 140 129 167 82 70 86 104 79 53 55 55 55 55 56 49 43 51 Slowest Speed 550 | 160 240 160 160 160 550 195 500 250 220 118 118 190 115 55 55 55 55 240 112 106 111 Overloaded Moves 19 | . . . . . . . . 19 . . . . . . . . . . . . . Propulsion Burnouts . | . . . . . . . . . . . . . . . . . . . . . . Robots Hopped 5 | . . . . . . . . . 5 . . . . . . . . . . . . Potential Cave-ins 16 | . . . . . . . . . 2 . . . . . . . 10 . 4 . . Cave-ins Triggered 1 | . . . . . . . . . . . . . . . . . . . 1 . . Exploration Rate (%) 47 | 4 50 38 63 27 52 27 24 37 76 92 89 39 30 54 71 92 46 36 51 38 17 Regions Visited 21 Branch Regions 12 Pre-discovered Areas 6 | . 2 . . . . 1 . . . . . . . 1 1 1 . . . . . Known Exits Taken 14 | . 1 . . . . . . 1 1 1 1 1 1 1 1 1 1 1 1 1 . Unknown Exits Taken 7 | 1 . 1 1 1 1 1 1 . . . . . . . . . . . . . . Scrap Searched 5 | . . 1 . 1 . . . . . . . . . 1 2 . . . . . . Spaces Dug 149 | . . . . . 3 . . 20 . . . 6 15 . . . 45 15 10 8 27 Terrain Destroyed 265 | . . . . . 3 77 3 28 2 2 . 6 15 . . 1 45 15 10 8 50 Melee 106 | . . . . . 3 . . 20 . . . 6 15 . . . 14 15 10 8 15 Projectile 40 | . . . . . . 1 . 3 2 2 . . . . . 1 31 . . . . AOE 118 | . . . . . . 76 3 4 . . . . . . . . . . . . 35 Terrain Rammed . | . . . . . . . . . . . . . . . . . . . . . . Walls Destroyed . | . . . . . . . . . . . . . . . . . . . . . . Machines Disabled . | . . . . . . . . . . . . . . . . . . . . . . Actions | -11 -10 -10 -10 -9 -8 -7 -6 -5 -5 -5 -5 -5 -4 -4 -4 -4 -3 -3 -2 -2 -1 --------- Run | Yrd Mat Min Exi Min Mat Fac Fac Fac Ext Cet Arc Hub Fac Upp Upp War Pro Res Res Tes Acc Total 21588 | 67 375 214 371 80 790 1125 1581 2968 2840 652 201 694 1292 419 651 1200 382 1645 2179 459 1403 Wait 3832 | . 11 4 . 1 51 173 588 580 716 84 36 109 268 67 26 274 12 251 382 42 157 Move 16164 | 57 305 194 363 79 611 855 835 2162 1782 523 161 501 969 351 608 901 324 1312 1719 398 1154 Hop 5 | . . . . . . . . . 5 . . . . . . . . . . . . Pick Up 123 | 5 11 6 1 . 10 3 5 25 16 4 2 4 5 . . 3 . 9 8 1 5 Fast Attach 137 | 5 2 . . . 9 16 12 33 11 . . 10 4 . . . . 7 12 3 13 Attach 79 | . 4 1 . . 3 . 7 18 8 5 1 9 1 . . . . 3 7 1 11 Detach 22 | . . . . . . . 1 8 1 1 . 7 1 . . . . . 1 . 2 Swap 96 | . 1 1 1 . 18 8 10 11 5 5 . 4 8 1 3 4 6 4 2 1 3 Drop 129 | . 1 2 6 . 13 8 9 24 12 . 1 11 7 . . 3 . 13 10 2 7 Fire 431 | . 37 6 . . 64 58 61 47 105 20 . . . . . 5 24 . . . 4 Melee 372 | . . . . . 7 . 3 51 56 10 . 39 29 . 14 10 16 41 38 11 47 Ram . | . . . . . . . . . . . . . . . . . . . . . . Kick 10 | . . . . . 3 4 3 . . . . . . . . . . . . . . Crush 4 | . 3 . . . 1 . . . . . . . . . . . . . . . . Escape Stasis 24 | . . . . . . . 8 8 8 . . . . . . . . . . . . Rewire 116 | . . . . . . . . 1 115 . . . . . . . . . . . . Trap 44 | . . . . . . . 39 . . . . . . . . . . 5 . . . Miscellaneous . | . . . . . . . . . . . . . . . . . . . . . . Route ------- -11/Scrapyard -10/Materials (discovered 2 exits: *Min x2) -10/Mines -10/Exiles -9/Mines -8/Materials -7/Factory -6/Factory -5/Factory (discovered 5 exits: *Fac / *Upp x2 / *Ext x2) -5/Extension (discovered 2 exits: *Fac / *Cet) -5/Cetus (discovered 3 exits: *Fac x2 / *Arc) -5/Archives (discovered 3 exits: *Fac / *Hub x2) -5/Hub_04(d) -4/Factory (discovered 2 exits: *Upp x2) -4/Upper Caves -4/Upper Caves (discovered 2 exits: *Res / *War) -4/Warlord -3/Proximity Caves -3/Research (discovered 3 exits: *Res / [*Arm] / *Qua) -2/Research -2/Testing -1/Access History --------- Turn | Location | Event 7 | -11/Scrapyard | Discovered new exit (range 14) 103 | -11/Scrapyard | Entered Materials 314 | -10/Materials | Discovered new exit (range 8) 316 | -10/Materials | Build established: Mutant 611 | -10/Materials | Lost 3 parts (1n1u1w) 640 | -10/Materials | Identified exit to Mines 732 | -10/Materials | Entered Mines 871 | -10/Mines | YI-UF0 nonchalantly dropped a Grenade Launcher on the ground 938 | -10/Mines | Learned Materials security intel 972 | -10/Mines | A weapon hastily lodged in a ceiling crevice suddenly fell to the ground 1064 | -10/Mines | Deemed a non-threat by the Exiles lab entrance 1066 | -10/Mines | Discovered new exit (range 5) 1072 | -10/Mines | Entered Exiles 1111 | -10/Exiles | Met 8R-AWN 1138 | -10/Exiles | Met EX-HEX 1186 | -10/Exiles | Met EX-BIN 1208 | -10/Exiles | Aligned with FarCom system 1210 | -10/Exiles | Given EX-Vault access code 1248 | -10/Exiles | Opened EX-Vault 1288 | -10/Exiles | Warned to stay clear of 0b10 Research branches 1335 | -10/Exiles | Met EX-DEC 1507 | -10/Exiles | Found Army-in-a-Box 1641 | -10/Exiles | Discovered new exit (range 12) 1659 | -10/Exiles | Left Exiles lab with Army-in-a-Box 1659 | -10/Exiles | Entered Mines 1771 | -9/Mines | Discovered new exit (range 7) 1774 | -9/Mines | Learned Materials emergency access door positions 1783 | -9/Mines | Received a Mining Laser from a helpful Derelict 1787 | -9/Mines | Entered Materials 1787 | -8/Materials | Accompanied by 1 ally 1787 | -8/Materials | Evolved 4 slots: Propulsion x1, Utility x2, Weapon x1 2345 | -8/Materials | Build established: Scavenger-Skirmisher 2711 | -8/Materials | Build established: Skirmisher 2865 | -8/Materials | Discovered new exit (range 13) 2959 | -8/Materials | Entered Factory 2959 | -7/Factory | Evolved 2 slots: Utility x2 4211 | -7/Factory | Lost 3 parts (1p1u1w) 4393 | -7/Factory | Discovered new exit (range 16) 4435 | -7/Factory | Entered another Factory area 4435 | -6/Factory | Evolved 2 slots: Power x1, Utility x1 4757 | -6/Factory | Build established: Scavenger-Skirmisher 5506 | -6/Factory | Fabricated H-55 Commando (x2) 5667 | -6/Factory | System corruption reached 10% 5690 | -6/Factory | Lost 6 parts (1p2n2u1w) 5856 | -6/Factory | Lost 11 parts (1p3n3u4w) 6318 | -6/Factory | Core integrity fell below 50% 6618 | -6/Factory | Discovered new exit (range 15) 6675 | -6/Factory | Entered another Factory area 6675 | -5/Factory | Evolved 2 slots: Propulsion x1, Weapon x1 7169 | -5/Factory | Lost 8 allies 7279 | -5/Factory | Lost 3 allies 7362 | -5/Factory | Discovered new exit (range 9) 7430 | -5/Factory | Build established: Skirmisher 7482 | -5/Factory | Lost 15 allies 7513 | -5/Factory | Discovered new exit (range 20) 7611 | -5/Factory | Lost 3 parts (1n1u1w) 7874 | -5/Factory | Build established: Scavenger-Skirmisher 7930 | -5/Factory | Lost 6 parts (1p2n3w) 8591 | -5/Factory | Identified exit to Factory 8689 | -5/Factory | Build established: Scavenger-Mutant 8708 | -5/Factory | Identified exit to Upper Caves 8888 | -5/Factory | Identified exit to Extension 9150 | -5/Factory | Build established: Scavenger-Gladiator 9316 | -5/Factory | System corruption reached 10% 9472 | -5/Factory | Entered Extension 9499 | -5/Extension | Rescued a captive Derelict 9500 | -5/Extension | Rescued a captive Derelict 9612 | -5/Extension | Lost 3 parts (2u1w) 9973 | -5/Extension | Rescued a captive Derelict 10363 | -5/Extension | Spotted B-75 Beast 10422 | -5/Extension | Lost 3 allies 10643 | -5/Extension | Destroyed B-75 Beast 10730 | -5/Extension | Build established: Gladiator 10897 | -5/Extension | Spotted B-75 Beast 11401 | -5/Extension | Build established: Scavenger-Gladiator 11823 | -5/Extension | Lost 3 allies 11829 | -5/Extension | Rescued A7 11947 | -5/Extension | Rescued a captive Derelict 11958 | -5/Extension | Discovered exit to Factory (range 10) 11959 | -5/Extension | Discovered new exit (range 6) 11970 | -5/Extension | Identified exit to Cetus 12010 | -5/Extension | Entered Cetus 12010 | -5/Cetus | Accompanied by 7 allies (A7) 12015 | -5/Cetus | Acquired a Cetus Manufacturing Module code from A7 12023 | -5/Cetus | Spotted Cetus Guard 12023 | -5/Cetus | Spotted Cetus Guard 12023 | -5/Cetus | Spotted Cetus Guard 12026 | -5/Cetus | Spotted Cetus Guard 12035 | -5/Cetus | Allies destroyed Cetus Guard 12048 | -5/Cetus | Allies destroyed Cetus Guard 12055 | -5/Cetus | Allies destroyed Cetus Guard 12066 | -5/Cetus | Allies destroyed Cetus Guard 12066 | -5/Cetus | Core integrity fell below 50% 12089 | -5/Cetus | Discovered exit to Factory (range 17) 12161 | -5/Cetus | Started Cetus Manufacturing Module 12186 | -5/Cetus | Manufactured an Enhanced Grunt 12211 | -5/Cetus | Manufactured an Enhanced Grunt 12236 | -5/Cetus | Manufactured an Enhanced Grunt 12261 | -5/Cetus | Manufactured an Enhanced Grunt 12286 | -5/Cetus | Manufactured an Enhanced Grunt 12315 | -5/Cetus | Discovered new exit (range 17) 12325 | -5/Cetus | Identified exit to Archives 12340 | -5/Cetus | Spotted Cetus Guard 12341 | -5/Cetus | Spotted Cetus Guard 12352 | -5/Cetus | Destroyed Cetus Guard 12352 | -5/Cetus | Spotted Cetus Guard 12354 | -5/Cetus | Spotted Cetus Guard 12368 | -5/Cetus | Discovered exit to Factory (range 17) 12371 | -5/Cetus | Allies destroyed Cetus Guard 12377 | -5/Cetus | Allies destroyed Cetus Guard 12383 | -5/Cetus | Allies destroyed Cetus Guard 12390 | -5/Cetus | Met Revision 17 12400 | -5/Cetus | Lost 3 parts (2n1w) 12414 | -5/Cetus | Lost 4 allies 12639 | -5/Cetus | Entered Archives 12639 | -5/Archives | Accompanied by 6 allies (A7) 12696 | -5/Archives | Discovered new exit (range 17) 12703 | -5/Archives | Discovered new exit (range 18) 12716 | -5/Archives | Unable to access archive contents 12729 | -5/Archives | Unable to access archive contents 12730 | -5/Archives | Discovered exit to Factory (range 17) 12746 | -5/Archives | Unable to access archive contents 12781 | -5/Archives | Identified exit to Hub_04(d) 12849 | -5/Archives | Entered Hub_04(d) 12849 | -5/Hub_04(d) | Accompanied by 3 allies 13087 | -5/Hub_04(d) | Discovered exit to Factory (range 7) 13515 | -5/Hub_04(d) | Entered Factory 13515 | -4/Factory | Evolved 2 slots: Propulsion x1, Utility x1 13617 | -4/Factory | Discovered new exit (range 15) 13701 | -4/Factory | Identified exit to Upper Caves 13843 | -4/Factory | Repaired Lyr. Medium Armor Plating 14055 | -4/Factory | Fabricated H-55 Commando? 14410 | -4/Factory | Entered Upper Caves 14647 | -4/Upper Caves | Discovered new exit (range 13) 14653 | -4/Upper Caves | Identified exit to Upper Caves 14672 | -4/Upper Caves | Entered another Upper Caves area 14865 | -4/Upper Caves | Discovered new exit (range 10) 14869 | -4/Upper Caves | Identified exit to Research 14972 | -4/Upper Caves | Spotted B-86 Titan 15075 | -4/Upper Caves | Discovered new exit (range 5) 15077 | -4/Upper Caves | Identified exit to Warlord 15077 | -4/Upper Caves | Entered Warlord 15101 | -4/Warlord | System corruption cleaned by Quarantine Array 15167 | -4/Warlord | Learned location of Quarantine (-3) 15168 | -4/Warlord | Learned 4 Quarantine zone layouts 15168 | -4/Warlord | Learned Factory fabricator intel 15168 | -4/Warlord | Learned Factory recycling unit intel 15168 | -4/Warlord | Learned Armory garrison access intel 15168 | -4/Warlord | Learned Research terminal intel 15451 | -4/Warlord | Found Prototype Device 15452 | -4/Warlord | Identified Minesniffer Drone Bay 15485 | -4/Warlord | Visited the Vortex Lab 15490 | -4/Warlord | Warlord's base attacked by MAIN.C 15525 | -4/Warlord | Met Warlord 15753 | -4/Warlord | Spotted B-90 Cyclops 15758 | -4/Warlord | Spotted B-86 Titan 15775 | -4/Warlord | Destroyed B-90 Cyclops 15779 | -4/Warlord | Destroyed B-86 Titan 15782 | -4/Warlord | Warlord forces counterattacked 15806 | -4/Warlord | Lost 9 allies 15884 | -4/Warlord | Spotted Striker 15885 | -4/Warlord | Discovered new exit (range 12) 15890 | -4/Warlord | Identified exit to Proximity Caves 15891 | -4/Warlord | Entered Proximity Caves 15893 | -3/Proximity Caves | Spotter reported a threat 15897 | -3/Proximity Caves | Lost 7 allies 15969 | -3/Proximity Caves | Spotted B-86 Titan 16176 | -3/Proximity Caves | Entered Research 16176 | -3/Research | Evolved 2 slots: Utility x2 16177 | -3/Research | Loaded intel: 24 terminal locations 16376 | -3/Research | Revision forces began assault on 0b10 16377 | -3/Research | Met up with Revision 17++ 16452 | -3/Research | Build established: Scavenger-Scout 16876 | -3/Research | Research terminal network offline 17035 | -3/Research | Spotted B-86 Titan 17065 | -3/Research | Discovered new exit (range 22) 17078 | -3/Research | Identified exit to Quarantine 17118 | -3/Research | Spotted Striker 17167 | -3/Research | Destroyed Striker 17188 | -3/Research | Lost 4 allies 17285 | -3/Research | Discovered new exit (range 13) 17291 | -3/Research | Identified exit to Research 17301 | -3/Research | Discovered new exit (range 16) 17301 | -3/Research | Entered another Research area 17301 | -2/Research | Warlord forces began assault on 0b10 17301 | -2/Research | Evolved 2 slots: Propulsion x1, Utility x1 17334 | -2/Research | Discovered new exit (range 19) 17411 | -2/Research | Research machine network offline 17442 | -2/Research | Lost 3 parts (1p2u) 17483 | -2/Research | Met up with Warlord 17640 | -2/Research | Borebot progress halted 17685 | -2/Research | Lost 4 allies 17700 | -2/Research | Spotted B-90 Cyclops 17731 | -2/Research | Destroyed B-90 Cyclops 17766 | -2/Research | Crushed by falling debris 17784 | -2/Research | Met DD-05H 17788 | -2/Research | Spotted Executioner 17925 | -2/Research | Spotted Striker 17970 | -2/Research | Spotted Striker 17971 | -2/Research | Spotted Striker 17984 | -2/Research | Lost 5 allies 18012 | -2/Research | Spotted Executioner 18012 | -2/Research | Spotted Executioner 18017 | -2/Research | Lost 5 parts (1p4u) 18063 | -2/Research | Build established: Scavenger-Gladiator 18171 | -2/Research | Borebot progress halted 18213 | -2/Research | Borebot progress halted 18341 | -2/Research | Spotted Striker 18475 | -2/Research | Spotted Executioner 18508 | -2/Research | Spotted Executioner 18546 | -2/Research | Spotted Executioner 18558 | -2/Research | Warlord invited to help at Command 18558 | -2/Research | Given Cave Seal Controls access code 18561 | -2/Research | Spotted Executioner 18618 | -2/Research | Lost 5 allies 18645 | -2/Research | Spotted Striker 18665 | -2/Research | Identified exit to Testing 18671 | -2/Research | Entered Testing 18672 | -2/Testing | Maximum security lockdown engaged 18698 | -2/Testing | Garrison activated, responded to threat 18717 | -2/Testing | Discovered new exit (range 19) 18893 | -2/Testing | Found Prototype Device 18893 | -2/Testing | Identified 2N-1CE's Frost Array 18930 | -2/Testing | Identified exit to Access 18931 | -2/Testing | Entered Access 18931 | -1/Access | Evolved 2 slots: Utility x1, Weapon x1 18962 | -1/Access | Lost 4 parts (2n2u) 19181 | -1/Access | First assault squad dispatched 19517 | -1/Access | Lost 5 parts (1p2n2u) 19848 | -1/Access | Released all parts (11) 19852 | -1/Access | Core integrity fell below 50% 19862 | -1/Access | Core integrity fell below 20% 19875 | -1/Access | Destroyed by P-80 Master with Gamma Rifle Last Messages --------------- 19860_ Penetrated by Slug. 19860_ U-05 Engineer lays Concrete. 19861_ Penetrated by Slug. 19861_ Slug penetrates Door. 19861_ Q-thruster destroyed. 19861_ Penetrated by Slug. 19861_ U-05 Engineer builds a Wall. 19862_ C-30 ARC bursts open, deploying its payload. 19862_ G-73 Enforcer unfolds itself. 19862_ L-61 Swordsman unfolds itself. 19862_ G-73 Enforcer unfolds itself. 19862_ E-15 Imp unfolds itself. 19864_ 19874_ Penetrated by Slug. Map ----- +----------------------------------------------------+ | ?????????????????????????????############### ## | | ?????????????????????????????# # | | ?????????????????????????????# ! # | | ?????????????????????????????# + | | ?????????????????????????????# # ## | | ?????????????????????????????# # #? | | ?????????????????????????????# # #? | | ???????????????????????####??########+###### "#? | | ???????????????????????# ???????? # #????# "%#? | | ???????????????????????# ???????=# #????# "#? | | ???????????????????????# ?????? # #????# ## | | ???????????????????????# """??? # #????# # | | ???????????????????????# """"" # #????# # | | ???????????????????????# """"" # #????# # | | ???????????????????????# """" #b##???# # | | ???????????????????????# " # ##???# # | | ???????????????????????# ?#b##???# " | | ???????????????????????# ???#b#????# # | | ???????????????????????# ! ?????# #????# # | | ?????????#####?????????? ???????#l#????# # | | ????????? R ##########/########## ###### =## | | ???????? p t =% p p !%* | | ???????? p u / p | | ???????? | | ???????? w | | ???????? @w | | ????????? % | | ????????h h#############+##################+#### | | ??????????????????????????????????????????? " ??? | | ?????????????????????????????????????????? ??? | | ???????????????????????????????????????? ?? | | ???????????????????????????????????????Y !! ?? | | ??????????????????????????????????????## !! "? | | ???????????????????????????????????????# !! T? | | ???????????????????????????????????????# ""? | | ???????????????????????????????????????# "" | | ???????????????????????????????????????# | | ???????????????????????????????????????# ? | | ???????????????????????????????????????# ?? | | ???????????????????????????????????????# ? | | ???????????????????????????????????????##########? | | ?????????????????????????????????????????????????? | | ?????????????????????????????????????????????????? | | ?????????????????????????????????????????????????? | | ?????????????????????????????????????????????????? | | ?????????????????????????????????????????????????? | | ?????????????????????????????????????????????????? | | ?????????????????????????????????????????????????? | | ?????????????????????????????????????????????????? | | ?????????????????????????????????????????????????? | +----------------------------------------------------+ Best States ------------- Heat Dissipation 61 Energy Generation 41 Energy Capacity 505 Matter Stores 300 Matter Capacity 300 Sight Range 23 Terrain Scan Range 16 Terrain Scan Density 10 Jamming Range 16 Cloak Strength 3 Corruption Block 15 Armor Coverage 600 Resistance: TH 15 Power Shielding 66 Propulsion Shielding 33 Weapon Cycling 15 Melee Speed Boost 20 Evasion (%) 66 Targeting Accuracy 16 Melee Accuracy 8 Target Analysis 12 Recoil Reduction 3 Kinecelleration 30 Offensive Hacking 26 Item Schematics ----------------- Hacking Suite | -8/Materials | Hacked Missile Launcher | -7/Factory | Scanalyzed Imp. Carbon-fiber Leg | -7/Factory | Scanalyzed Robot Schematics ------------------ H-55 Commando | -8/Materials | Hacked Fabricated ------------ H-55 Commando | x2 | -6/Factory H-55 Commando | x2 | -4/Factory Repaired ---------- Lyr. Medium Armor Plating | 16% | -4/Factory Alien Tech Used ----------------- None Achievements -------------- All-out Warlord Project G-00 Release The Drones! Revising The Future Revolutionary Research Challenges ------------ None Game ------ Seed NodeSensorInterpreter Manual? 0 Play Time 05:41:24 Cumulative 95.9 hours Start 2025.08.20 @ 17:29:24 End 2025.08.29 @ 16:46:47 Sessions 13 Manual Loads 0 Difficulty Rogue Special Mode None Game No. 52 Rogue 47 Adventurer 5 Explorer 0 Win Type - Total 2 Types 1/0/1/0/0/0/0/0/0/0 Lore% 54 Gallery% 47 Achievement% 45 Wizard Run 0 Options --------- Layout 1 ASCII 0 Keyboard 0 Movement Numpad Keybinds 1 Fullscreen 1 Font 24/Smallcaps Map View 50x35 Zoom Use 0% Tactical HUD 1 Map Filters NONE Filters NONE Steam 1 RUN: b4c7f347-8997-49ac-bb21-9f36c99858a7